fUSD/lending_fUSD_20260305
["ID","MTS","AMOUNT","RATE_DAILY","PERIOD"]
[407692205,1772682650267,-171.786488,0.00044982,120]
[407692206,1772682650276,-7724.67254702,0.00045,30]
[407692207,1772682650285,-600.0,0.00045,120]
[407692208,1772682650294,-151.0,0.00045,120]
[407692209,1772682650302,-151.0,0.00045,120]
[407692210,1772682650311,-151.0,0.00045,120]
[407692211,1772682650320,-151.0,0.00045,120]
[407692212,1772682650329,-151.0,0.00045,120]
[407692213,1772682650339,-151.0,0.00045,120]
[407692214,1772682650348,-222.509166,0.00045,120]
[407692215,1772682650357,-151.0,0.00045,120]
[407692216,1772682650367,-216.842448,0.00045,120]
[407692217,1772682650376,-216.842448,0.00045,120]
[407692218,1772682650386,-216.842448,0.00045,120]
[407692219,1772682650395,-216.842448,0.00045,120]
[407692220,1772682650404,-151.0,0.00045,120]
[407692221,1772682650413,-215.37089,0.00045,60]
[407692222,1772682650423,-215.37089,0.00045,60]
[407692223,1772682650432,-215.37089,0.00045,60]
[407692224,1772682650441,-2000.0,0.00045,7]
[407692225,1772682650450,-215.37089,0.00045,60]
[407692226,1772682650460,-151.0,0.00045,30]
[407692227,1772682650470,-151.0,0.00045,30]
[407692228,1772682650480,-151.0,0.00045,120]
[407692229,1772682650490,-151.0,0.00045,120]
[407692230,1772682650500,-351.447539,0.00045,120]
[407692231,1772682650510,-295.247774,0.00045,120]
[407692232,1772682650519,-351.447539,0.00045,120]
[407692233,1772682650528,-201.015041,0.00045,120]
[407692234,1772682650537,-351.447539,0.00045,120]
[407692235,1772682650546,-151.0,0.00045,120]
[407692236,1772682650555,-351.447539,0.00045,120]
[407692237,1772682650565,-151.0,0.00045,120]
[407692238,1772682650574,-151.0,0.00045,120]
[407692239,1772682650583,-151.0,0.00045,120]
[407692240,1772682650593,-151.0,0.00045,31]
[407692241,1772682650603,-151.0,0.00045,120]
[407692242,1772682650613,-151.0,0.00045,120]
[407692243,1772682650623,-151.0,0.00045,120]
[407692244,1772682650632,-398.579205,0.00045,120]
[407692245,1772682650641,-398.579205,0.00045,120]
[407692246,1772682650651,-398.579205,0.00045,120]
[407692247,1772682650661,-398.579205,0.00045,120]
[407692248,1772682650671,-2426.73802,0.00045,120]
[407692249,1772682650681,-2426.73802,0.00045,120]
[407692250,1772682650690,-2426.73802,0.00045,120]
[407692251,1772682650700,-2426.73802,0.00045,120]
[407692252,1772682650709,-167.329462,0.00045,120]
[407692253,1772682650719,-151.0,0.00045,120]
[407692254,1772682650729,-151.0,0.00045,120]
[407692255,1772682650738,-151.0,0.00045,120]
[407692256,1772682650748,-222.013865,0.00045,120]
[407692257,1772682650757,-151.0,0.00045,120]
[407692258,1772682650768,-221.218027,0.00045,120]
[407692259,1772682650777,-222.013865,0.00045,120]
[407692260,1772682650785,-151.0,0.00045,120]
[407692261,1772682650794,-221.218027,0.00045,120]
[407692262,1772682650803,-222.013865,0.00045,120]
[407692263,1772682650813,-221.218027,0.00045,120]
[407692264,1772682650823,-151.0,0.00045,30]
[407692265,1772682650832,-222.013865,0.00045,120]
[407692266,1772682650841,-151.0,0.00045,120]
[407692267,1772682650850,-221.218027,0.00045,120]
[407692268,1772682650860,-151.0,0.00045,120]
[407692269,1772682650870,-151.0,0.00045,120]
[407692270,1772682650880,-247.5,0.00045,120]
[407692271,1772682650889,-247.5,0.00045,120]
[407692272,1772682650898,-247.5,0.00045,120]
[407692273,1772682650907,-263.534077,0.00045,120]
[407692274,1772682650917,-151.0,0.00045,30]
[407692275,1772682650926,-247.5,0.00045,120]
[407692276,1772682650936,-151.0,0.00045,120]
[407692277,1772682650945,-263.534077,0.00045,120]
[407692278,1772682650955,-212.281229,0.00045,120]
[407692279,1772682650964,-151.0,0.00045,30]
[407692280,1772682650974,-263.534077,0.00045,120]
[407692281,1772682650984,-212.281229,0.00045,120]
[407692282,1772682650997,-151.0,0.00045,30]
[407692283,1772682651007,-263.534077,0.00045,120]
[407692284,1772682651016,-212.281229,0.00045,120]
[407692285,1772682651025,-212.281229,0.00045,120]
[407692286,1772682651038,-151.0,0.00045,120]
[407692287,1772682651048,-151.0,0.00045,120]
[407692288,1772682651058,-152.41827,0.00045,120]
[407692289,1772682651071,-192.25,0.00045,120]
[407692290,1772682651080,-160.0,0.00045019,16]
[407692291,1772682651089,-2524.3053002,0.00045106,15]
[407692292,1772682651098,-207.711337,0.00045121,120]
[407692293,1772682651108,-185.59339656,0.0004515,14]
[407692294,1772682651117,-620.43,0.00045183,30]
[407692295,1772682651127,-150.0,0.00045189,14]
[407692296,1772682651137,-150.0,0.00045193,14]
[407692297,1772682651147,-150.0,0.00045226,14]
[407692298,1772682651157,-567.0,0.00045252,2]
[407692299,1772682651166,-200.0,0.00045252,2]
[407692300,1772682651175,-200.0,0.00045252,2]
[407692301,1772682651186,-200.0,0.00045252,2]
[407692302,1772682651196,-200.0,0.00045252,2]
[407692303,1772682651206,-200.0,0.00045252,2]
[407692304,1772682651215,-200.0,0.00045252,2]
[407692305,1772682651224,-200.0,0.00045252,2]
[407692306,1772682651235,-177.0,0.00045252,2]
[407692307,1772682651244,-358.0,0.00045252,2]
[407692308,1772682651253,-151.0,0.00045252,120]
[407692309,1772682651263,-151.0,0.00045252,120]
[407692310,1772682651272,-151.0,0.00045252,120]
[407692311,1772682651281,-151.0,0.00045252,120]
[407692312,1772682651290,-641.067422,0.00045252,15]
[407692313,1772682651299,-641.067422,0.00045252,15]
[407692314,1772682651308,-641.067422,0.00045252,15]
[407692315,1772682651318,-151.0,0.00045252,120]
[407692316,1772682651326,-641.067422,0.00045252,15]
[407692317,1772682651335,-151.0,0.00045252,120]
[407692318,1772682651344,-404.839304,0.00045252,120]
[407692319,1772682651355,-151.0,0.00045252,120]
[407692320,1772682651364,-151.0,0.00045252,120]
[407692321,1772682651373,-151.0,0.00045252,120]
[407692322,1772682651382,-404.839304,0.00045252,120]
[407692323,1772682651391,-404.839304,0.00045252,120]
[407692324,1772682651400,-404.839304,0.00045252,120]
[407692325,1772682651409,-151.0,0.00045252,120]
[407692326,1772682651419,-151.0,0.00045252,120]
[407692327,1772682651430,-158.091853,0.00045252,120]
[407692328,1772682651439,-482.709516,0.00045252,120]
[407692329,1772682651448,-482.709516,0.00045252,120]
[407692330,1772682651459,-482.709516,0.00045252,120]
[407692331,1772682651471,-482.709516,0.00045252,120]
[407692332,1772682651480,-151.0,0.00045252,120]
[407692333,1772682651489,-199.570003,0.00045252,120]
[407692334,1772682651498,-164.733557,0.00045252,120]
[407692335,1772682651508,-151.0,0.00045252,7]
[407692336,1772682651518,-151.0,0.00045252,7]
[407692337,1772682651527,-232.9624,0.00045252,7]
[407692338,1772682651537,-151.0,0.00045252,120]
[407692339,1772682651546,-151.0,0.00045252,120]
[407692340,1772682651555,-168.795259,0.00045252,120]
[407692341,1772682651565,-151.0,0.00045252,60]
[407692342,1772682651574,-151.0,0.00045252,60]
[407692343,1772682651586,-283.866909,0.00045252,60]
[407692344,1772682651595,-151.0,0.00045252,120]
[407692345,1772682651605,-151.0,0.00045252,60]
[407692346,1772682651616,-151.0,0.00045252,120]
[407692347,1772682651626,-2704.419585,0.00045252,14]
[407692348,1772682651635,-2704.419585,0.00045252,14]
[407692349,1772682651646,-2704.419585,0.00045252,14]
[407692350,1772682651656,-2704.419593,0.00045252,14]
[407692351,1772682651665,-696.984332,0.00045252,120]
[407692352,1772682651675,-150.0,0.00045289,30]
[407692353,1772682651684,-219.0,0.00045289,30]
[407692354,1772682651695,-150.0,0.0004531,14]
[407692355,1772682651705,-2524.3053002,0.00045347,15]
[407692356,1772682651715,-183.56,0.00045347,14]
[407692357,1772682651725,-572.83,0.00045356,120]
[407692358,1772682651735,-150.0,0.00045369,14]
[407692359,1772682651744,-151.0,0.00045399,120]
[407692360,1772682651753,-151.0,0.00045399,120]
[407692361,1772682651763,-151.0,0.00045399,120]
[407692362,1772682651774,-151.0,0.00045399,120]
[407692363,1772682651783,-228.296166,0.00045399,120]
[407692364,1772682651792,-546.361528,0.00045399,120]
[407692365,1772682651801,-546.361528,0.00045399,120]
[407692366,1772682651811,-546.361528,0.00045399,120]
[407692367,1772682651820,-151.0,0.00045399,120]
[407692368,1772682651829,-546.361528,0.00045399,120]
[407692369,1772682651840,-151.0,0.00045399,120]
[407692370,1772682651850,-151.0,0.00045399,120]
[407692371,1772682651859,-151.0,0.00045399,120]
[407692372,1772682651868,-2000.0,0.000454,7]
[407692373,1772682651877,-388.4557803,0.0004544,120]
[407692374,1772682651887,-620.43,0.00045457,30]
[407692375,1772682651896,-151.0,0.00045479,120]
[407692376,1772682651906,-151.0,0.00045479,120]
[407692377,1772682651916,-151.0,0.00045479,120]
[407692378,1772682651926,-151.0,0.00045479,120]
[407692379,1772682651935,-151.0,0.00045479,120]
[407692380,1772682651944,-151.0,0.00045479,120]
[407692381,1772682651954,-151.0,0.00045479,120]
[407692382,1772682651963,-151.0,0.00045479,120]
[407692383,1772682651972,-151.0,0.00045479,120]
[407692384,1772682651983,-151.0,0.00045479,120]
[407692385,1772682651996,-151.0,0.00045479,120]
[407692386,1772682652006,-164.022506,0.00045479,120]
[407692387,1772682652015,-2524.3053002,0.00045587,15]
[407692388,1772682652025,-186.75,0.00045641,2]
[407692389,1772682652034,-265.36856786,0.00045651,17]
[407692390,1772682652044,-2070.0,0.000457,7]
[407692391,1772682652053,-620.43,0.00045731,30]
[407692392,1772682652063,-2068.69561395,0.00045759,28]
[407692393,1772682652072,-2524.3053002,0.00045828,15]
[407692394,1772682652082,-154.360406,0.00045897,30]
[407692395,1772682652091,-246.915631,0.00045897,120]
[407692396,1772682652102,-153.97836,0.00045897,120]
[407692397,1772682652111,-151.0,0.00045897,120]
[407692398,1772682652120,-290.623561,0.00045897,120]
[407692399,1772682652130,-151.0,0.00045897,120]
[407692400,1772682652139,-151.0,0.00045897,120]
[407692401,1772682652149,-151.068109,0.00045897,120]
[407692402,1772682652158,-151.068109,0.00045897,120]
[407692403,1772682652171,-151.068109,0.00045897,120]
[407692404,1772682652180,-151.068109,0.00045897,120]
[407692405,1772682652189,-155.731899,0.00045897,120]
[407692406,1772682652200,-155.731899,0.00045897,120]
[407692407,1772682652210,-155.731899,0.00045897,120]
[407692408,1772682652220,-155.731899,0.00045897,120]
[407692409,1772682652230,-151.0,0.00045897,120]
[407692410,1772682652239,-165.859396,0.00045897,120]
[407692411,1772682652249,-151.0,0.00045897,120]
[407692412,1772682652259,-151.0,0.00045897,120]
[407692413,1772682652268,-151.0,0.00045897,120]
[407692414,1772682652278,-173.29482,0.00045897,120]
[407692415,1772682652287,-20146.96284235,0.000459,54]
[407692416,1772682652297,-29039.247235,0.000459,120]
[407692417,1772682652307,-329.18939091,0.000459,21]
[407692418,1772682652316,-151.0,0.000459,120]
[407692419,1772682652325,-151.0,0.000459,120]
[407692420,1772682652336,-151.0,0.000459,120]
[407692421,1772682652346,-151.0,0.000459,120]
[407692422,1772682652355,-151.0,0.000459,120]
[407692423,1772682652365,-151.0,0.000459,2]
[407692424,1772682652375,-241.706379,0.000459,120]
[407692425,1772682652385,-151.0,0.000459,120]
[407692426,1772682652397,-151.0,0.000459,120]
[407692427,1772682652407,-151.0,0.000459,120]
[407692428,1772682652419,-151.0,0.000459,120]
[407692429,1772682652428,-194.109819,0.000459,120]
[407692430,1772682652438,-177.371748,0.000459,120]
[407692431,1772682652447,-151.0,0.000459,120]
[407692432,1772682652456,-151.0,0.000459,120]
[407692433,1772682652466,-151.0,0.000459,120]
[407692434,1772682652476,-151.0,0.000459,120]
[407692435,1772682652486,-151.0,0.000459,120]
[407692436,1772682652496,-151.0,0.000459,120]
[407692437,1772682652505,-152.565272,0.000459,120]
[407692438,1772682652514,-216.842448,0.000459,120]
[407692439,1772682652523,-216.842448,0.000459,120]
[407692440,1772682652533,-216.842448,0.000459,120]
[407692441,1772682652543,-216.842448,0.000459,120]
[407692442,1772682652553,-151.0,0.000459,120]
[407692443,1772682652562,-215.37089,0.000459,60]
[407692444,1772682652572,-215.37089,0.000459,60]
[407692445,1772682652582,-215.37089,0.000459,60]
[407692446,1772682652593,-215.37089,0.000459,60]
[407692447,1772682652603,-151.0,0.000459,30]
[407692448,1772682652613,-151.0,0.000459,30]
[407692449,1772682652622,-151.0,0.000459,120]
[407692450,1772682652632,-151.0,0.000459,120]
[407692451,1772682652641,-151.0,0.000459,120]
[407692452,1772682652651,-151.0,0.000459,120]
[407692453,1772682652661,-546.361528,0.000459,120]
[407692454,1772682652670,-546.361528,0.000459,120]
[407692455,1772682652680,-546.361528,0.000459,120]
[407692456,1772682652690,-151.0,0.000459,120]
[407692457,1772682652699,-546.361523,0.000459,120]
[407692458,1772682652709,-151.0,0.000459,120]
[407692459,1772682652719,-151.0,0.000459,120]
[407692460,1772682652729,-151.0,0.000459,120]
[407692461,1772682652738,-151.0,0.000459,120]
[407692462,1772682652748,-351.447539,0.000459,120]
[407692463,1772682652757,-351.447539,0.000459,120]
[407692464,1772682652766,-351.447539,0.000459,120]
[407692465,1772682652776,-151.0,0.000459,120]
[407692466,1772682652785,-351.447535,0.000459,120]
[407692467,1772682652795,-180.099064,0.000459,120]
[407692468,1772682652805,-151.0,0.000459,120]
[407692469,1772682652815,-151.0,0.000459,31]
[407692470,1772682652824,-181.607522,0.000459,120]
[407692471,1772682652834,-151.0,0.000459,120]
[407692472,1772682652844,-151.0,0.000459,120]
[407692473,1772682652854,-398.579205,0.000459,120]
[407692474,1772682652863,-398.579205,0.000459,120]
[407692475,1772682652873,-398.579205,0.000459,120]
[407692476,1772682652883,-398.579196,0.000459,120]
[407692477,1772682652892,-2426.73802,0.000459,120]
[407692478,1772682652902,-2426.73802,0.000459,120]
[407692479,1772682652912,-2426.73802,0.000459,120]
[407692480,1772682652921,-2426.738012,0.000459,120]
[407692481,1772682652931,-151.0,0.000459,120]
[407692482,1772682652940,-184.196297,0.000459,120]
[407692483,1772682652950,-151.0,0.000459,120]
[407692484,1772682652960,-151.000006,0.000459,120]
[407692485,1772682652970,-641.067422,0.000459,15]
[407692486,1772682652981,-641.067422,0.000459,15]
[407692487,1772682652993,-641.067422,0.000459,15]
[407692488,1772682653003,-151.0,0.000459,120]
[407692489,1772682653014,-641.067418,0.000459,15]
[407692490,1772682653023,-151.0,0.000459,120]
[407692491,1772682653034,-404.839304,0.000459,120]
[407692492,1772682653044,-277.756592,0.000459,120]
[407692493,1772682653053,-151.0,0.000459,120]
[407692494,1772682653064,-151.0,0.000459,120]
[407692495,1772682653074,-404.839304,0.000459,120]
[407692496,1772682653082,-404.839304,0.000459,120]
[407692497,1772682653092,-404.8393,0.000459,120]
[407692498,1772682653101,-151.0,0.000459,120]
[407692499,1772682653111,-151.0,0.000459,120]
[407692500,1772682653120,-482.709516,0.000459,120]
[407692501,1772682653129,-482.709516,0.000459,120]
[407692502,1772682653139,-482.709516,0.000459,120]
[407692503,1772682653148,-482.709516,0.000459,120]
[407692504,1772682653157,-151.0,0.000459,120]
[407692505,1772682653167,-151.0,0.000459,120]
[407692506,1772682653177,-151.0,0.000459,120]
[407692507,1772682653187,-222.013865,0.000459,120]
[407692508,1772682653196,-151.0,0.000459,120]
[407692509,1772682653205,-221.218027,0.000459,120]
[407692510,1772682653215,-222.013865,0.000459,120]
[407692511,1772682653224,-151.0,0.000459,120]
[407692512,1772682653234,-221.218027,0.000459,120]
[407692513,1772682653243,-222.013865,0.000459,120]
[407692514,1772682653252,-221.218027,0.000459,120]
[407692515,1772682653262,-295.684404,0.000459,30]
[407692516,1772682653271,-222.013861,0.000459,120]
[407692517,1772682653280,-151.0,0.000459,120]
[407692518,1772682653290,-221.218034,0.000459,120]
[407692519,1772682653300,-299.057075,0.000459,120]
[407692520,1772682653309,-151.0,0.000459,120]
[407692521,1772682653319,-151.0,0.000459,120]
[407692522,1772682653329,-151.0,0.000459,120]
[407692523,1772682653338,-247.5,0.000459,120]
[407692524,1772682653348,-247.5,0.000459,120]
[407692525,1772682653358,-247.5,0.000459,120]
[407692526,1772682653367,-263.534077,0.000459,120]
[407692527,1772682653377,-151.0,0.000459,30]
[407692528,1772682653387,-247.5,0.000459,120]
[407692529,1772682653396,-263.534077,0.000459,120]
[407692530,1772682653406,-174.229152,0.000459,120]
[407692531,1772682653417,-212.281229,0.000459,120]
[407692532,1772682653427,-151.0,0.000459,30]
[407692533,1772682653436,-263.534077,0.000459,120]
[407692534,1772682653447,-212.281229,0.000459,120]
[407692535,1772682653456,-193.184091,0.000459,30]
[407692536,1772682653466,-263.534081,0.000459,120]
[407692537,1772682653475,-212.281229,0.000459,120]
[407692538,1772682653486,-212.28123,0.000459,120]
[407692539,1772682653495,-151.0,0.000459,120]
[407692540,1772682653505,-151.0,0.000459,120]
[407692541,1772682653515,-29666.0,0.00045903,60]
[407692542,1772682653524,-183.983323,0.00045903,120]
[407692543,1772682653534,-151.0,0.00045903,120]
[407692544,1772682653543,-151.0,0.00045903,120]
[407692545,1772682653553,-151.000014,0.00045903,120]
[407692546,1772682653563,-151.068109,0.00045903,120]
[407692547,1772682653573,-151.068109,0.00045903,120]
[407692548,1772682653583,-151.068109,0.00045903,120]
[407692549,1772682653593,-151.068105,0.00045903,120]
[407692550,1772682653603,-155.731899,0.00045903,120]
[407692551,1772682653613,-155.731899,0.00045903,120]
[407692552,1772682653622,-155.731899,0.00045903,120]
[407692553,1772682653632,-155.731907,0.00045903,120]
[407692554,1772682653641,-151.0,0.00045903,120]
[407692555,1772682653651,-151.0,0.00045903,120]
[407692556,1772682653660,-151.0,0.00045903,120]
[407692557,1772682653670,-151.0,0.00045903,120]
[407692558,1772682653679,-350.0,0.00045967,4]
[407692559,1772682653689,-342.1087271,0.0004599,7]
[407692560,1772682653700,-981.74,0.00045999,120]
[407692561,1772682653709,-981.74,0.00045999,120]
[407692562,1772682653719,-500.0,0.00045999,120]
[407692563,1772682653728,-509.67252372,0.00045999,120]
[407692564,1772682653738,-500.0,0.00045999,120]
[407692565,1772682653747,-500.0,0.00045999,120]
[407692566,1772682653757,-500.0,0.00045999,120]
[407692567,1772682653766,-500.0,0.00045999,120]
[407692568,1772682653776,-186.056571,0.00045999,120]
[407692569,1772682653786,-500.0,0.00045999,120]
[407692570,1772682653795,-500.0,0.00045999,120]
[407692571,1772682653805,-500.0,0.00045999,120]
[407692572,1772682653814,-151.0,0.00045999,120]
[407692573,1772682653824,-160.576634,0.00045999,120]
[407692574,1772682653834,-151.0,0.00045999,120]
[407692575,1772682653843,-216.842448,0.00045999,120]
[407692576,1772682653852,-216.842448,0.00045999,120]
[407692577,1772682653862,-216.842448,0.00045999,120]
[407692578,1772682653872,-216.842442,0.00045999,120]
[407692579,1772682653882,-151.0,0.00045999,120]
[407692580,1772682653892,-215.37089,0.00045999,60]
[407692581,1772682654041,-215.37089,0.00045999,60]
[407692582,1772682654052,-215.37089,0.00045999,60]
[407692583,1772682654062,-215.370882,0.00045999,60]
[407692584,1772682654071,-151.0,0.00045999,30]
[407692585,1772682654080,-151.0,0.00045999,30]
[407692586,1772682654090,-200.0,0.00045999,120]
[407692587,1772682654099,-335.68354836,0.00045999,120]
[407692588,1772682654108,-18394.7027827,0.00046,120]
[407692589,1772682654286,-393.03903894,0.00046,120]
[407692590,1772682654300,-1019.43947187,0.00046,120]
[407692591,1772682654310,-998.9063611,0.00046,120]
[407692592,1772682654648,-485.86341782,0.00043919,10]
[407692593,1772682654662,-18016.49658218,0.00043919,10]
[407692594,1772682654672,-696.984332,0.00043928,120]
[407692595,1772682654682,-492.847271,0.00043928,120]
[407692596,1772682654691,-696.984332,0.00043928,120]
[407692597,1772682654701,-696.984332,0.00044334,120]
[407692598,1772682654711,-492.847271,0.00044334,120]
[407692599,1772682654719,-696.984332,0.00044334,120]
[407692600,1772682654729,-696.984332,0.00044483,120]
[407692601,1772682654738,-492.847271,0.00044483,120]
[407692602,1772682654747,-696.984332,0.00044635,120]
[407692603,1772682654756,-492.847271,0.00044635,120]
[407692604,1772682654766,-696.984332,0.00045252,120]
[407692605,1772682654775,-696.984332,0.00045252,120]
[407692606,1772682654784,-382859.32900834,0.00046,120]
[407692607,1772682654795,-18598.30867313,0.00046,120]
[407692608,1772682654806,-3090.62336816,0.00046,120]
[407692609,1772682654818,-904.64662748,0.00046,120]
[407692610,1772682654830,-12678.21375174,0.00046,120]
[407692611,1772682654845,-808.00460389,0.00046,120]
[407692612,1772682654867,-696.984332,0.00044483,120]
[407692613,1772682654878,-492.847271,0.00045252,120]
[407692614,1772682654888,-33623.86046464,0.00046,120]
[407692615,1772682654898,-435.67978181,0.00046,120]
[407692616,1772682654908,-158.0,0.00046,120]
[407692617,1772682654918,-161.0,0.00046,2]
[407692618,1772682654927,-151.0,0.00046,120]
[407692619,1772682654936,-151.0,0.00046,120]
[407692620,1772682654947,-153.510087,0.00046,120]
[407692621,1772682654958,-151.0,0.00046,120]
[407692622,1772682654970,-180.92709,0.00046,120]
[407692623,1772682654980,-156.660299,0.00046,120]
[407692624,1772682654996,-151.0,0.00046,2]
[407692625,1772682655005,-151.0,0.00046,2]
[407692626,1772682655015,-151.0,0.00046,120]
[407692627,1772682655025,-198.000665,0.00046,120]
[407692628,1772682655035,-151.0,0.00046,120]
[407692629,1772682655044,-151.0,0.00046,120]
[407692630,1772682655054,-151.0,0.00046,120]
[407692631,1772682655065,-311.0,0.00046,10]
[407692632,1772682655076,-620.43,0.00046005,30]
[407692633,1772682655086,-168.0,0.00046013,2]
[407692634,1772682655095,-500.0,0.0004602,120]
[407692635,1772682655107,-151.0,0.00046021,120]
[407692636,1772682655117,-151.0,0.00046021,120]
[407692637,1772682655127,-2524.3053002,0.00046069,15]
[407692638,1772682655136,-151.0,0.00046155,120]
[407692639,1772682655145,-151.0,0.00046221,120]
[407692640,1772682655155,-330.16,0.00046245,120]
[407692641,1772682655165,-2524.3053002,0.0004631,15]
[407692642,1772682655175,-5242.48310552,0.00046336,30]
[407692643,1772682655184,-152.97,0.00046379,14]
[407692644,1772682655194,-506.39402074,0.00046388,30]
[407692645,1772682655204,-187.19413152,0.00046459,120]
[407692646,1772682655213,-246.0,0.00046499,120]
[407692647,1772682655222,-179.68370949,0.000465,120]
[407692648,1772682655231,-154.0,0.000465,120]
[407692649,1772682655241,-209.1493227,0.000465,30]
[407692650,1772682655250,-152.97,0.00046512,14]
[407692651,1772682655258,-1647.85399309,0.00046551,120]
[407692652,1772682655267,-2524.3053002,0.00046551,15]
[407692653,1772682655276,-189.1597078,0.00046552,2]
[407692654,1772682655285,-254.40313773,0.00046552,2]
[407692655,1772682655294,-200.4206956,0.00046552,2]
[407692656,1772682655303,-2786.86036483,0.00046552,2]
[407692657,1772682655313,-246.54770135,0.00046552,9]
[407692658,1772682655322,-150.0,0.00046552,30]
[407692659,1772682655333,-264.07564178,0.00046552,30]
[407692660,1772682655343,-916.14,0.00046567,2]
[407692661,1772682655353,-500.0,0.00046575,120]
[407692662,1772682655366,-233.2157957,0.00046576,7]
[407692663,1772682655375,-182.741971,0.00046576,7]
[407692664,1772682655385,-981.74,0.00046637,120]
[407692665,1772682655394,-981.74,0.00046637,120]
[407692666,1772682655403,-981.74,0.00046637,120]
[407692667,1772682655413,-981.74,0.00046637,120]
[407692668,1772682655422,-981.74,0.00046637,120]
[407692669,1772682655432,-981.74,0.00046637,120]
[407692670,1772682655443,-981.74,0.00046637,120]
[407692671,1772682655452,-981.74,0.00046637,120]
[407692672,1772682655462,-981.74,0.00046637,120]
[407692673,1772682655472,-981.74,0.00046637,120]
[407692674,1772682655482,-981.74,0.00046637,120]
[407692675,1772682655492,-981.74,0.00046637,120]
[407692676,1772682655502,-342.42624358,0.00046641,120]
[407692677,1772682655511,-151.80402137,0.00046642,30]
[407692678,1772682655520,-342.1087271,0.00046642,7]
[407692679,1772682655530,-342.1087271,0.00046642,7]
[407692680,1772682655539,-150.0,0.00046646,2]
[407692681,1772682655548,-500.0,0.00046646,120]
[407692682,1772682655557,-500.0,0.00046646,120]
[407692683,1772682655567,-500.0,0.00046646,120]
[407692684,1772682655576,-510.96232633,0.00046646,120]
[407692685,1772682655585,-170.854963,0.00046646,120]
[407692686,1772682655594,-200.805006,0.00046646,120]
[407692687,1772682655604,-500.0,0.00046646,120]
[407692688,1772682655614,-603.35204793,0.00046646,120]
[407692689,1772682655623,-300.0,0.00046646,30]
[407692690,1772682655633,-672.37589308,0.00046646,30]
[407692691,1772682655643,-300.0,0.00046646,30]
[407692692,1772682655653,-153.47,0.00046652,2]
[407692693,1772682655664,-1320.05063578,0.00046652,30]
[407692694,1772682655673,-5000.0,0.00046652,30]
[407692695,1772682655682,-5000.0,0.00046652,30]
[407692696,1772682655691,-5000.0,0.00046652,30]
[407692697,1772682655700,-5000.0,0.00046652,30]
[407692698,1772682655709,-5000.0,0.00046652,30]
[407692699,1772682655719,-4965.0,0.00046652,30]
[407692700,1772682655728,-5000.0,0.00046652,120]
[407692701,1772682655737,-5000.0,0.00046652,120]
[407692702,1772682655747,-5000.0,0.00046652,120]
[407692703,1772682655755,-5000.0,0.00046652,120]
[407692704,1772682655764,-5000.0,0.00046652,120]